[Event "DMP Ekstraliga 2020"]
[Site "Krakow"]
[Date "2020.03.27"]
[Round "2.26"]
[White "Nasuta, Grzegorz"]
[Black "Bartel, Mateusz"]
[Result "1/2-1/2"]
[ECO "C11"]
[WhiteElo "2553"]
[BlackElo "2643"]
[Annotator "ChessBase"]
[PlyCount "59"]
[EventDate "2020.08.26"]
[EventType "team-tourn"]
[EventCountry "POL"]
[SourceTitle "playchess.com"]
[Source "ChessBase"]
[SourceQuality "1"]
[TimeControl "30/5400+30:1800+30"]

1. e4 {[%emt 0:00:00]} e6 {[%emt 0:00:00]} 2. d4 {[%emt 0:00:00]} d5 {[%emt 0:00:00]} 3. Nc3 {[%emt 0:00:00]} Nf6 {[%emt 0:00:00]} 4. Bg5 {[%emt 0:00:25]} dxe4 {[%emt 0:00:01]} 5. Nxe4 {[%emt 0:00:08]} Be7 {[%emt 0:00:06]} 6. Bxf6 {[%emt 0:00:08]} gxf6 {[%emt 0:00:07]} 7. Qd2 {[%emt 0:00:11]} b6 {[%emt 0:01:34]} 8. O-O-O {[%emt 0:03:37]} Bb7 {[%emt 0:00:30]} 9. Nc3 {[%emt 0:00:12]} c6 {[%emt 0:00:07]} 10. f4 {[%emt 0:00:48]} f5 {[%emt 0:01:10]} 11. Nf3 {[%emt 0:00:32]} Nd7 {[%emt 0:00:12]} 12. g3 {[%emt 0:01:26]} Qc7 {[%emt 0:03:16]} 13. Bg2 {[%emt 0:00:47]} O-O-O {[%emt 0:00:52]} 14. Rhe1 {[%emt 0:12:38]} Bf6 {[%emt 0:16:09]} 15. Qe2 {[%emt 0:03:28]} b5 {[%emt 0:09:05]} 16. a3 {[%emt 0:17:15]} Nb6 {[%emt 0:02:48]} 17. Ne5 {[%emt 0:16:51]} Bxe5 {[%emt 0:06:33]} 18. dxe5 {[%emt 0:02:43]} Nc4 {[%emt 0:00:11]} 19. Qf2 {[%emt 0:00:47]} Qb6 {[%emt 0:02:54]} 20. Qxb6 {[%emt 0:00:36]} Nxb6 {[%emt 0:00:27]} 21. Rxd8+ {[%emt 0:07:39]} Rxd8 {[%emt 0:00:19]} 22. Bf3 {[%emt 0:00:03]} a5 {[%emt 0:05:52]} 23. Rd1 {[%emt 0:10:50]} Rxd1+ {[%emt 0:04:06]} 24. Nxd1 {[%emt 0:01:35]} Kd7 {[%emt 0:01:14]} 25. Ne3 {[%emt 0:00:28]} Ke7 {[%emt 0:03:11]} 26. g4 {[%emt 0:11:54]} fxg4 {[%emt 0:07:15]} 27. Nxg4 {[%emt 0:00:07]} Nd7 {[%emt 0:01:23]} 28. Kd2 {[%emt 0:02:38]} f5 {[%emt 0:08:26]} 29. Nf2 {[%emt 0:01:21]} Kd8 {[%emt 0:00:11]} 30. Nd3 {[%emt 0:04:48]} 1/2-1/2

[Event "DMP Ekstraliga 2020"]
[Site "Krakow"]
[Date "2020.03.27"]
[Round "2.27"]
[White "Gumularz, Szymon"]
[Black "Markowski, Tomasz"]
[Result "1/2-1/2"]
[ECO "B30"]
[WhiteElo "2506"]
[BlackElo "2548"]
[Annotator "ChessBase"]
[PlyCount "111"]
[EventDate "2020.08.26"]
[EventType "team-tourn"]
[EventCountry "POL"]
[SourceTitle "playchess.com"]
[Source "ChessBase"]
[SourceQuality "1"]
[TimeControl "30/5400+30:1800+30"]

1. e4 {[%emt 0:00:00]} c5 {[%emt 0:00:00]} 2. Nf3 {[%emt 0:00:00]} Nc6 {[%emt 0:00:00]} 3. Bb5 {[%emt 0:00:43]} e6 {[%emt 0:00:00]} 4. O-O {[%emt 0:02:31]} Nge7 {[%emt 0:00:00]} 5. d4 {[%emt 0:01:36]} cxd4 {[%emt 0:00:09]} 6. Nxd4 {[%emt 0:00:05]} Ng6 {[%emt 0:01:12]} 7. Be3 {[%emt 0:03:16]} Be7 {[%emt 0:00:24]} 8. Be2 {[%emt 0:00:46]} O-O {[%emt 0:00:53]} 9. Nc3 {[%emt 0:02:06]} d6 {[%emt 0:05:12]} 10. Nb3 {[%emt 0:11:29]} b6 {[%emt 0:09:00]} 11. Qd2 {[%emt 0:02:38]} Bb7 {[%emt 0:01:46]} 12. Rad1 {[%emt 0:00:24]} Qd7 {[%emt 0:03:56]} 13. f4 {[%emt 0:01:30]} Rfd8 {[%emt 0:00:31]} 14. Bg4 {[%emt 0:19:56]} Ba6 {[%emt 0:11:26]} 15. Rfe1 {[%emt 0:01:04]} Qb7 {[%emt 0:00:26]} 16. Qf2 {[%emt 0:04:17]} Rac8 {[%emt 0:02:58]} 17. g3 {[%emt 0:04:46]} Nf8 {[%emt 0:03:36]} 18. Bf3 {[%emt 0:02:57]} Nd7 {[%emt 0:01:23]} 19. g4 {[%emt 0:03:23]} Bf8 {[%emt 0:00:51]} 20. g5 {[%emt 0:00:24]} Qc7 {[%emt 0:06:47]} 21. h4 {[%emt 0:12:17]} b5 {[%emt 0:08:42]} 22. Be2 {[%emt 0:06:41]} Qb7 {[%emt 0:01:06]} 23. Qf1 Nb4 24. Rd2 {[%emt 0:05:27]} Rxc3 {[%emt 0:03:11]} 25. bxc3 {[%emt 0:00:10]} Nxa2 {[%emt 0:04:01]} 26. c4 {[%emt 0:05:55]} Nc3 27. Na5 {[%emt 0:03:41]} Qc7 {[%emt 0:03:53]} 28. cxb5 {[%emt 0:00:03]} Qxa5 {[%emt 0:00:53]} 29. bxa6 {[%emt 0:00:15]} Nxe4 {[%emt 0:04:07]} 30. Rdd1 {[%emt 0:03:38]} d5 31. Bxa7 Bb4 {[%emt 0:31:35]} 32. Ra1 {[%emt 0:32:19]} Qc7 {[%emt 0:00:51]} 33. Be3 {[%emt 0:00:04]} Ng3 {[%emt 0:07:59]} 34. Qf3 {[%emt 0:00:34]} Bxe1 {[%emt 0:00:28]} 35. Rxe1 {[%emt 0:00:13]} Nf5 {[%emt 0:00:28]} 36. Bf2 {[%emt 0:00:49]} Nc5 37. Ra1 Ne4 {[%emt 0:08:03]} 38. a7 {[%emt 0:01:57]} Ra8 {[%emt 0:00:41]} 39. Bd3 {[%emt 0:00:12]} Nxf2 {[%emt 0:01:28]} 40. Qxf2 {[%emt 0:00:00]} Nd6 {[%emt 0:00:00]} 41. Ra6 {[%emt 0:00:00]} Nc8 42. f5 e5 {[%emt 0:00:00]} 43. Bb5 {[%emt 0:00:00]} Rxa7 {[%emt 0:00:00]} 44. Rc6 {[%emt 0:00:00]} Qd8 {[%emt 0:00:00]} 45. Qc5 {[%emt 0:00:00]} Ra8 46. Rc7 {[%emt 0:01:46]} Nd6 {[%emt 0:00:00]} 47. Rd7 {[%emt 0:02:11]} Qa5 {[%emt 0:00:00]} 48. Qxd5 Qb6+ {[%emt 0:00:00]} 49. Kg2 {[%emt 0:01:41]} Rd8 {[%emt 0:00:00]} 50. Rxd8+ {[%emt 0:00:42]} Qxd8 {[%emt 0:00:00]} 51. Bd3 {[%emt 0:00:29]} Qe7 {[%emt 0:01:54]} 52. Qa8+ {[%emt 0:00:26]} Qf8 {[%emt 0:00:33]} 53. Qd5 {[%emt 0:00:04]} Qe7 {[%emt 0:00:33]} 54. Qa8+ {[%emt 0:00:06]} Qf8 {[%emt 0:00:02]} 55. Qd5 {[%emt 0:00:39]} Qe7 {[%emt 0:00:08]} 56. Qa8+ 1/2-1/2

[Event "DMP Ekstraliga 2020"]
[Site "Krakow"]
[Date "2020.03.27"]
[Round "2.28"]
[White "Krzyzanowski, Marcin"]
[Black "Tazbir, Marcin"]
[Result "0-1"]
[ECO "E20"]
[WhiteElo "2518"]
[BlackElo "2510"]
[Annotator "ChessBase"]
[PlyCount "108"]
[EventDate "2020.08.26"]
[EventType "team-tourn"]
[EventCountry "POL"]
[SourceTitle "playchess.com"]
[Source "ChessBase"]
[SourceQuality "1"]
[TimeControl "30/5400+30:1800+30"]

1. d4 {[%emt 0:00:00]} Nf6 {[%emt 0:00:38]} 2. c4 {[%emt 0:00:00]} e6 {[%emt 0:00:04]} 3. Nc3 {[%emt 0:00:09]} Bb4 {[%emt 0:00:11]} 4. f3 {[%emt 0:00:26]} Nc6 {[%emt 0:02:07]} 5. a3 {[%emt 0:03:15]} Bxc3+ {[%emt 0:02:08]} 6. bxc3 {[%emt 0:00:03]} d6 {[%emt 0:00:17]} 7. e4 {[%emt 0:01:05]} b6 {[%emt 0:01:49]} 8. Bd3 {[%emt 0:01:25]} Na5 {[%emt 0:05:24]} 9. Ne2 {[%emt 0:19:45]} Nd7 {[%emt 0:04:14]} 10. O-O {[%emt 0:13:15]} Ba6 {[%emt 0:04:45]} 11. f4 {[%emt 0:05:14]} Qe7 {[%emt 0:04:22]} 12. Ng3 {[%emt 0:03:29]} O-O-O {[%emt 0:03:03]} 13. Qe2 {[%emt 0:10:51]} f6 {[%emt 0:06:32]} 14. Rb1 {[%emt 0:02:44]} c5 {[%emt 0:03:22]} 15. e5 {[%emt 0:06:40]} f5 {[%emt 0:08:29]} 16. Re1 {[%emt 0:10:45]} g6 {[%emt 0:03:09]} 17. a4 {[%emt 0:01:18]} Rhe8 {[%emt 0:09:39]} 18. Ba3 {[%emt 0:01:18]} Qh4 {[%emt 0:02:27]} 19. Qf1 {[%emt 0:03:40]} dxe5 {[%emt 0:05:11]} 20. fxe5 {[%emt 0:00:45]} Bb7 {[%emt 0:06:59]} 21. dxc5 {[%emt 0:02:58]} Nc6 {[%emt 0:06:24]} 22. cxb6 {[%emt 0:01:42]} Ndxe5 {[%emt 0:00:09]} 23. Be2 {[%emt 0:00:43]} a5 {[%emt 0:03:20]} 24. Rbd1 {[%emt 0:02:41]} Rxd1 {[%emt 0:01:53]} 25. Rxd1 {[%emt 0:00:03]} Rd8 {[%emt 0:00:29]} 26. Rd6 {[%emt 0:02:35]} Rxd6 {[%emt 0:06:42]} 27. Bxd6 {[%emt 0:00:03]} Qg5 {[%emt 0:00:17]} 28. Qf2 {[%emt 0:03:56]} Qc1+ {[%emt 0:00:31]} 29. Nf1 {[%emt 0:01:58]} Qxc3 {[%emt 0:01:15]} 30. c5 {[%emt 0:00:28]} Nf7 {[%emt 0:01:05]} 31. Bf4 {[%emt 0:31:27]} Nd4 {[%emt 0:30:49]} 32. Be3 {[%emt 0:00:16]} e5 {[%emt 0:00:43]} 33. Bxd4 {[%emt 0:00:53]} exd4 {[%emt 0:00:24]} 34. Bf3 {[%emt 0:00:34]} Qxc5 {[%emt 0:00:42]} 35. Bxb7+ {[%emt 0:00:34]} Kxb7 {[%emt 0:00:03]} 36. Nd2 {[%emt 0:00:24]} Qxb6 {[%emt 0:01:49]} 37. Qf3+ {[%emt 0:00:26]} Ka7 {[%emt 0:01:09]} 38. Qd5 {[%emt 0:00:05]} Nd6 {[%emt 0:00:27]} 39. h3 {[%emt 0:00:25]} Nb7 {[%emt 0:04:44]} 40. Nb3 {[%emt 0:00:00]} d3+ {[%emt 0:00:00]} 41. Kf1 {[%emt 0:00:00]} Qe3 {[%emt 0:00:00]} 42. Nd4 {[%emt 0:00:00]} Qc1+ {[%emt 0:00:00]} 43. Kf2 {[%emt 0:00:00]} d2 {[%emt 0:00:00]} 44. Nb5+ {[%emt 0:00:00]} Kb6 {[%emt 0:00:00]} 45. Qd4+ {[%emt 0:00:00]} Qc5 {[%emt 0:00:00]} 46. Ke2 {[%emt 0:00:00]} Qxd4 {[%emt 0:00:00]} 47. Nxd4 {[%emt 0:00:00]} Nc5 {[%emt 0:00:00]} 48. Kxd2 {[%emt 0:00:00]} Nxa4 {[%emt 0:00:00]} 49. Ne6 {[%emt 0:00:00]} Nc5 {[%emt 0:00:00]} 50. Nf8 {[%emt 0:00:00]} Ne4+ {[%emt 0:00:00]} 51. Kd3 {[%emt 0:00:00]} Nf6 {[%emt 0:00:00]} 52. Kc4 {[%emt 0:00:00]} Kc6 {[%emt 0:00:00]} 53. Ne6 {[%emt 0:00:00]} Kd6 {[%emt 0:00:00]} 54. Nd4 {[%emt 0:00:00]} Ke5 {[%emt 0:00:00]} 0-1

[Event "DMP Ekstraliga 2020"]
[Site "Krakow"]
[Date "2020.03.27"]
[Round "2.29"]
[White "Wieczorek, Oskar"]
[Black "Jakubowski, Krzysztof"]
[Result "1/2-1/2"]
[ECO "B23"]
[WhiteElo "2493"]
[BlackElo "2481"]
[Annotator "ChessBase"]
[PlyCount "111"]
[EventDate "2020.08.26"]
[EventType "team-tourn"]
[EventCountry "POL"]
[SourceTitle "playchess.com"]
[Source "ChessBase"]
[SourceQuality "1"]
[TimeControl "30/5400+30:1800+30"]

1. e4 {[%emt 0:00:00]} c5 {[%emt 0:00:00]} 2. Nc3 {[%emt 0:00:00]} a6 {[%emt 0:01:09]} 3. g3 {[%emt 0:00:02]} b5 {[%emt 0:00:10]} 4. Bg2 {[%emt 0:00:10]} Bb7 {[%emt 0:00:06]} 5. f4 {[%emt 0:00:38]} e6 {[%emt 0:00:29]} 6. d3 {[%emt 0:00:23]} Ne7 {[%emt 0:04:30]} 7. Nf3 {[%emt 0:04:01]} Nec6 {[%emt 0:00:22]} 8. O-O {[%emt 0:02:08]} Be7 {[%emt 0:02:12]} 9. f5 {[%emt 0:03:31]} O-O {[%emt 0:04:45]} 10. Be3 {[%emt 0:07:02]} b4 {[%emt 0:13:58]} 11. Na4 {[%emt 0:14:34]} exf5 {[%emt 0:06:34]} 12. Nxc5 {[%emt 0:05:08]} Qb6 {[%emt 0:01:19]} 13. d4 {[%emt 0:04:05]} fxe4 {[%emt 0:00:09]} 14. Nxe4 {[%emt 0:00:54]} Na5 {[%emt 0:01:49]} 15. Qd3 {[%emt 0:19:14]} Qb5 {[%emt 0:15:32]} 16. Ne5 {[%emt 0:08:03]} d6 {[%emt 0:30:23]} 17. Qxb5 {[%emt 0:02:17]} axb5 {[%emt 0:00:06]} 18. Nd3 {[%emt 0:00:05]} Na6 {[%emt 0:00:31]} 19. Rf5 {[%emt 0:07:35]} Nc4 {[%emt 0:04:14]} 20. Bg5 {[%emt 0:05:46]} Rae8 {[%emt 0:03:56]} 21. Re1 {[%emt 0:00:40]} f6 {[%emt 0:02:24]} 22. Bc1 {[%emt 0:08:40]} d5 {[%emt 0:01:53]} 23. Nef2 {[%emt 0:03:17]} Nb6 {[%emt 0:01:26]} 24. Nh3 {[%emt 0:01:55]} g5 {[%emt 0:02:05]} 25. Rff1 {[%emt 0:00:58]} Kg7 {[%emt 0:01:47]} 26. Nhf2 Bc8 {[%emt 0:00:24]} 27. Nd1 {[%emt 0:01:14]} Nc7 28. Nc5 f5 {[%emt 0:01:06]} 29. Nf2 {[%emt 0:01:15]} Bf6 {[%emt 0:00:15]} 30. c3 {[%emt 0:00:35]} bxc3 {[%emt 0:00:36]} 31. bxc3 {[%emt 0:30:04]} Rxe1 {[%emt 0:30:31]} 32. Rxe1 {[%emt 0:00:05]} Re8 {[%emt 0:00:02]} 33. Rxe8 {[%emt 0:00:27]} Nxe8 {[%emt 0:00:02]} 34. Nfd3 {[%emt 0:00:14]} Nd6 {[%emt 0:00:22]} 35. Ba3 {[%emt 0:01:23]} Ne4 {[%emt 0:00:24]} 36. Bb4 {[%emt 0:00:05]} Nc4 {[%emt 0:00:59]} 37. a4 bxa4 {[%emt 0:00:10]} 38. Nxa4 {[%emt 0:01:26]} Ne3 {[%emt 0:01:14]} 39. Bf3 {[%emt 0:00:47]} Ba6 {[%emt 0:00:56]} 40. Nac5 {[%emt 0:00:00]} Bc4 {[%emt 0:00:00]} 41. Ne5 {[%emt 0:00:00]} Bxe5 {[%emt 0:00:00]} 42. dxe5 {[%emt 0:00:00]} g4 {[%emt 0:00:00]} 43. Bg2 {[%emt 0:00:00]} Nd1 {[%emt 0:00:00]} 44. Ne6+ {[%emt 0:00:00]} Kg8 {[%emt 0:00:00]} 45. Nd4 {[%emt 0:00:00]} Ndxc3 {[%emt 0:00:38]} 46. Bxe4 {[%emt 0:00:00]} Nxe4 {[%emt 0:00:16]} 47. e6 {[%emt 0:00:00]} Bd3 {[%emt 0:01:44]} 48. Nxf5 {[%emt 0:00:00]} Bb5 {[%emt 0:01:41]} 49. Ne7+ {[%emt 0:00:58]} Kg7 {[%emt 0:00:11]} 50. Nxd5 {[%emt 0:00:07]} Bc6 {[%emt 0:01:03]} 51. e7 {[%emt 0:01:29]} Kf7 {[%emt 0:00:31]} 52. Ne3 {[%emt 0:00:40]} Nf6 {[%emt 0:00:35]} 53. Nf5 {[%emt 0:00:33]} Bd7 {[%emt 0:00:21]} 54. Ne3 {[%emt 0:02:02]} Be6 {[%emt 0:00:27]} 55. Kf2 {[%emt 0:00:44]} Nd5 {[%emt 0:00:21]} 56. Nxd5 {[%emt 0:00:23]} 1/2-1/2

[Event "DMP Ekstraliga 2020"]
[Site "Krakow"]
[Date "2020.03.27"]
[Round "2.30"]
[White "Worek, Joanna"]
[Black "Zawadzka, Jolanta"]
[Result "1/2-1/2"]
[ECO "B90"]
[WhiteElo "2326"]
[BlackElo "2419"]
[Annotator "ChessBase"]
[PlyCount "73"]
[EventDate "2020.08.26"]
[EventType "team-tourn"]
[EventCountry "POL"]
[SourceTitle "playchess.com"]
[Source "ChessBase"]
[SourceQuality "1"]
[TimeControl "30/5400+30:1800+30"]

1. e4 {[%emt 0:00:00]} c5 {[%emt 0:00:00]} 2. Nf3 {[%emt 0:00:00]} d6 {[%emt 0:00:00]} 3. d4 {[%emt 0:00:00]} cxd4 {[%emt 0:00:00]} 4. Nxd4 {[%emt 0:00:00]} Nf6 {[%emt 0:00:00]} 5. Nc3 {[%emt 0:00:00]} a6 {[%emt 0:00:00]} 6. Be3 {[%emt 0:00:38]} e5 {[%emt 0:00:09]} 7. Nb3 {[%emt 0:00:07]} Be6 {[%emt 0:00:17]} 8. f3 {[%emt 0:00:37]} h5 {[%emt 0:00:57]} 9. Qd2 {[%emt 0:00:34]} Nbd7 {[%emt 0:00:10]} 10. O-O-O {[%emt 0:01:47]} Be7 {[%emt 0:00:14]} 11. Kb1 {[%emt 0:04:48]} b5 {[%emt 0:00:47]} 12. Nd5 {[%emt 0:01:10]} Bxd5 {[%emt 0:02:14]} 13. exd5 {[%emt 0:00:06]} Nb6 {[%emt 0:01:02]} 14. Bxb6 {[%emt 0:05:00]} Qxb6 {[%emt 0:00:05]} 15. Na5 {[%emt 0:00:13]} Rc8 {[%emt 0:05:15]} 16. Nc6 {[%emt 0:08:26]} Nxd5 {[%emt 0:02:41]} 17. Nxe7 {[%emt 0:03:33]} Nxe7 {[%emt 0:00:06]} 18. Qxd6 {[%emt 0:03:19]} Qxd6 {[%emt 0:00:32]} 19. Rxd6 {[%emt 0:00:05]} Nc6 {[%emt 0:00:10]} 20. Be2 {[%emt 0:13:58]} Ke7 {[%emt 0:05:12]} 21. Rdd1 {[%emt 0:01:10]} g6 {[%emt 0:10:50]} 22. Rhe1 {[%emt 0:02:24]} Rhd8 {[%emt 0:05:06]} 23. c3 {[%emt 0:20:31]} Ke6 {[%emt 0:08:31]} 24. a4 {[%emt 0:04:19]} Rxd1+ {[%emt 0:05:47]} 25. Rxd1 {[%emt 0:00:07]} Rb8 {[%emt 0:00:42]} 26. axb5 {[%emt 0:00:33]} axb5 {[%emt 0:00:04]} 27. b4 {[%emt 0:00:18]} Ne7 {[%emt 0:07:53]} 28. Kb2 {[%emt 0:03:28]} Nf5 {[%emt 0:03:29]} 29. Ra1 {[%emt 0:04:47]} Nd6 {[%emt 0:00:39]} 30. Kb3 {[%emt 0:04:27]} f5 {[%emt 0:08:18]} 31. Ra6 {[%emt 0:34:50]} Kd5 {[%emt 0:36:15]} 32. Ra7 {[%emt 0:01:35]} Rb6 {[%emt 0:04:21]} 33. Rg7 {[%emt 0:03:27]} Nc4 {[%emt 0:02:39]} 34. Rc7 {[%emt 0:02:23]} Nd6 {[%emt 0:01:51]} 35. Rg7 {[%emt 0:00:48]} Nc4 {[%emt 0:00:08]} 36. Rc7 {[%emt 0:00:13]} Nd6 {[%emt 0:00:06]} 37. Rg7 {[%emt 0:00:15]} 1/2-1/2

[Event "DMP Ekstraliga 2020"]
[Site "Krakow"]
[Date "2020.08.28"]
[Round "3.1"]
[White "Huschenbeth, Niclas"]
[Black "Kryvoruchko, Yuriy"]
[Result "1/2-1/2"]
[ECO "C65"]
[WhiteElo "2605"]
[BlackElo "2682"]
[Annotator "ChessBase"]
[PlyCount "67"]
[EventDate "2020.08.26"]
[EventType "team-tourn"]
[EventCountry "POL"]
[SourceTitle "playchess.com"]
[Source "ChessBase"]
[SourceQuality "1"]
[TimeControl "30/5400+30:1800+30"]

1. e4 {[%emt 0:00:00]} e5 {[%emt 0:00:02]} 2. Nf3 {[%emt 0:00:00]} Nc6 {[%emt 0:00:04]} 3. Bb5 {[%emt 0:00:00]} Nf6 {[%emt 0:00:13]} 4. d3 {[%emt 0:00:00]} Bc5 {[%emt 0:00:05]} 5. c3 {[%emt 0:00:00]} d5 {[%emt 0:00:14]} 6. exd5 {[%emt 0:00:00]} Qxd5 {[%emt 0:00:05]} 7. Bc4 {[%emt 0:00:10]} Qd6 {[%emt 0:00:12]} 8. b4 {[%emt 0:00:38]} Bb6 {[%emt 0:00:07]} 9. a4 {[%emt 0:00:14]} O-O {[%emt 0:01:11]} 10. Nbd2 {[%emt 0:00:31]} Bf5 {[%emt 0:02:25]} 11. Ba3 {[%emt 0:01:33]} e4 {[%emt 0:03:45]} 12. dxe4 {[%emt 0:00:05]} Nxe4 {[%emt 0:00:07]} 13. Nxe4 {[%emt 0:00:05]} Bxe4 {[%emt 0:00:04]} 14. Qxd6 {[%emt 0:00:07]} cxd6 {[%emt 0:00:03]} 15. O-O-O {[%emt 0:00:09]} Rac8 {[%emt 0:11:16]} 16. Bd5 {[%emt 0:03:28]} Bxd5 {[%emt 0:00:38]} 17. Rxd5 {[%emt 0:00:04]} Ne5 {[%emt 0:00:03]} 18. Nxe5 {[%emt 0:00:14]} dxe5 {[%emt 0:00:05]} 19. Kb2 {[%emt 0:00:15]} Rfd8 {[%emt 0:02:23]} 20. Rxe5 {[%emt 0:24:13]} Rxc3 {[%emt 0:00:27]} 21. Rd1 {[%emt 0:00:09]} Rcc8 {[%emt 0:03:55]} 22. Rxd8+ {[%emt 0:00:42]} Rxd8 {[%emt 0:00:05]} 23. Re7 {[%emt 0:00:33]} h5 {[%emt 0:03:06]} 24. Rxb7 {[%emt 0:06:59]} Bxf2 {[%emt 0:06:44]} 25. b5 {[%emt 0:13:07]} Rd5 {[%emt 0:04:56]} 26. Bb4 {[%emt 0:25:11]} h4 {[%emt 0:02:41]} 27. a5 {[%emt 0:02:40]} Rg5 {[%emt 0:05:22]} 28. a6 {[%emt 0:06:27]} Rxg2 {[%emt 0:00:46]} 29. Kb3 {[%emt 0:00:09]} Rxh2 {[%emt 0:12:40]} 30. b6 {[%emt 0:00:18]} Bxb6 {[%emt 0:01:09]} 31. Rxb6 {[%emt 0:31:31]} h3 {[%emt 0:30:17]} 32. Rb5 {[%emt 0:09:30]} Re2 {[%emt 0:02:33]} 33. Rh5 {[%emt 0:00:52]} Re6 {[%emt 0:01:04]} 34. Rxh3 {[%emt 0:00:06]} 1/2-1/2

[Event "DMP Ekstraliga 2020"]
[Site "Krakow"]
[Date "2020.08.28"]
[Round "3.2"]
[White "Bluebaum, Matthias"]
[Black "Nasuta, Grzegorz"]
[Result "1-0"]
[ECO "D02"]
[WhiteElo "2647"]
[BlackElo "2553"]
[Annotator "ChessBase"]
[PlyCount "103"]
[EventDate "2020.08.26"]
[EventType "team-tourn"]
[EventCountry "POL"]
[SourceTitle "playchess.com"]
[Source "ChessBase"]
[SourceQuality "1"]
[TimeControl "30/5400+30:1800+30"]

1. d4 {[%emt 0:00:00]} d5 {[%emt 0:00:00]} 2. Nf3 {[%emt 0:00:00]} Nf6 {[%emt 0:00:00]} 3. Bf4 {[%emt 0:00:00]} c5 {[%emt 0:00:39]} 4. e3 {[%emt 0:00:00]} Nc6 {[%emt 0:00:10]} 5. Nbd2 {[%emt 0:00:07]} Qb6 {[%emt 0:00:20]} 6. dxc5 {[%emt 0:00:42]} Qxb2 {[%emt 0:00:10]} 7. Rb1 {[%emt 0:00:03]} Qc3 {[%emt 0:00:06]} 8. Bb5 {[%emt 0:00:25]} g6 {[%emt 0:00:38]} 9. O-O {[%emt 0:03:07]} Bg7 {[%emt 0:00:52]} 10. Nb3 {[%emt 0:04:08]} O-O {[%emt 0:00:55]} 11. Bxc6 {[%emt 0:07:04]} bxc6 {[%emt 0:00:06]} 12. Be5 {[%emt 0:00:03]} Qc4 {[%emt 0:00:26]} 13. Qd4 {[%emt 0:07:28]} Qxd4 {[%emt 0:01:49]} 14. Nbxd4 {[%emt 0:04:50]} Ba6 {[%emt 0:04:40]} 15. Nxc6 {[%emt 0:12:23]} Rfe8 {[%emt 0:46:18]} 16. Rfd1 {[%emt 0:08:31]} Rac8 {[%emt 0:07:14]} 17. Bxf6 {[%emt 0:05:42]} Bxf6 {[%emt 0:00:23]} 18. Nb4 {[%emt 0:00:04]} Bc4 {[%emt 0:11:53]} 19. Nxd5 {[%emt 0:00:45]} Bg7 {[%emt 0:00:14]} 20. Rb7 {[%emt 0:10:17]} Rxc5 {[%emt 0:00:21]} 21. Nb4 {[%emt 0:00:04]} a5 {[%emt 0:12:12]} 22. Nd3 {[%emt 0:00:05]} Bxd3 {[%emt 0:07:32]} 23. cxd3 {[%emt 0:00:54]} Rc2 {[%emt 0:00:01]} 24. a4 {[%emt 0:04:17]} Ra2 {[%emt 0:00:01]} 25. d4 {[%emt 0:01:10]} Rxa4 {[%emt 0:00:06]} 26. g3 {[%emt 0:00:02]} Bf8 {[%emt 0:03:47]} 27. Ra7 {[%emt 0:02:13]} Rc8 {[%emt 0:00:18]} 28. Rd2 {[%emt 0:02:12]} Ra1+ {[%emt 0:01:50]} 29. Kg2 {[%emt 0:00:03]} f6 {[%emt 0:00:52]} 30. d5 {[%emt 0:02:11]} Rd8 {[%emt 0:00:17]} 31. e4 {[%emt 0:30:04]} e6 {[%emt 0:30:46]} 32. dxe6 {[%emt 0:02:14]} Re8 {[%emt 0:00:01]} 33. Rdd7 {[%emt 0:02:30]} Rxe6 {[%emt 0:00:35]} 34. Ra8 {[%emt 0:00:24]} Rxe4 {[%emt 0:00:49]} 35. Rdd8 {[%emt 0:00:18]} Ra2 {[%emt 0:00:30]} 36. Rxf8+ {[%emt 0:01:20]} Kg7 {[%emt 0:00:01]} 37. Rfe8 {[%emt 0:01:04]} Rxe8 {[%emt 0:00:43]} 38. Rxe8 {[%emt 0:00:03]} Kf7 {[%emt 0:00:40]} 39. Ra8 {[%emt 0:00:35]} Ke6 {[%emt 0:00:38]} 40. Ra6+ {[%emt 0:00:00]} Kd5 {[%emt 0:00:00]} 41. Rxf6 {[%emt 0:00:00]} a4 {[%emt 0:00:00]} 42. Rf7 {[%emt 0:00:00]} a3 {[%emt 0:00:00]} 43. Rxh7 {[%emt 0:00:00]} Re2 {[%emt 0:00:00]} 44. Ra7 {[%emt 0:00:00]} a2 {[%emt 0:00:00]} 45. Ra4 {[%emt 0:00:00]} Kc5 {[%emt 0:00:00]} 46. Nd4 {[%emt 0:00:00]} Rd2 {[%emt 0:00:00]} 47. h4 {[%emt 0:00:00]} Rxd4 {[%emt 0:00:00]} 48. Rxa2 {[%emt 0:00:00]} Rd6 {[%emt 0:00:00]} 49. h5 {[%emt 0:00:00]} gxh5 {[%emt 0:00:00]} 50. Ra5+ {[%emt 0:00:00]} Kd4 {[%emt 0:00:00]} 51. Rxh5 {[%emt 0:00:00]} Ke4 {[%emt 0:00:00]} 52. f3+ {[%emt 0:00:00]} 1-0